bitfinex/quotes_SOLUSD_20250201
["timestamp","ask_amount","ask_price","bid_price","bid_amount"]
[1738386474098,0.063,231.85,231.83,217.6618]
[1738386474820,0.063,231.85,231.83,217.6918]
[1738386503336,0.063,231.85,231.84,8.55562557]
[1738386503547,0.063,231.85,231.84,22.61425162]
[1738386503838,0.063,231.85,231.84,238.61425162]
[1738386504029,0.063,231.85,231.84,237.9674741]
[1738386507818,0.063,231.85,231.84,239.2184541]
[1738386509515,0.063,231.85,231.84,239.3439441]
[1738386509717,0.063,231.85,231.84,273.56644638]
[1738386510521,0.063,231.85,231.84,274.56644638]
[1738386510824,0.063,231.87,231.86,1.12549]
[1738386511030,0.063,231.87,231.86,23.73951399]
[1738386512365,0.063,231.87,231.86,240.73951399]
[1738386512518,0.063,231.87,231.86,240.0929641]
[1738386515650,0.063,231.87,231.86,246.5530641]
[1738386515947,0.063,231.91,231.9,34.78831853]
[1738386516157,0.063,231.91,231.9,259.99041567]
[1738386516457,0.063,231.91,231.9,259.3439441]
[1738386517249,0.063,231.91,231.9,263.6561441]
[1738386523958,0.0001,231.91,231.9,263.7816341]
[1738386525764,0.03,231.98,231.96,1.0]
[1738386525940,0.03,231.98,231.97,25.4137955]
[1738386526256,0.03,231.98,231.97,25.6647755]
[1738386526552,0.03,231.98,231.97,26.7902655]
[1738386526939,0.03,231.98,231.97,242.7902655]
[1738386527259,0.03,231.98,231.97,243.8327341]
[1738386527449,0.0001,231.98,231.97,243.8327341]
[1738386527759,0.0001,231.98,231.97,248.1436341]
[1738386528439,0.0001,231.98,231.97,248.0181441]
[1738386531077,0.0001,231.98,231.97,248.1436341]
[1738386531659,0.063,232.07,232.01,0.25098]
[1738386531840,0.063,232.07,232.03,13.41184853]
[1738386532044,0.063,232.07,232.05,8.55562557]
[1738386537547,0.063,232.07,232.05,224.55552557]
[1738386539574,0.063,232.07,232.06,9.201816]
[1738386539879,0.063,232.07,232.06,225.201716]
[1738386540049,0.063,232.07,232.06,224.55552557]
[1738386542676,0.063,232.07,232.06,237.9673741]
[1738386542975,0.063,232.07,232.06,238.3438441]
[1738386543289,0.063,232.07,232.06,239.3438441]
[1738386543462,0.063,232.07,232.06,237.9673741]
[1738386558887,0.063,232.07,232.06,238.3438441]
[1738386559082,0.063,232.07,232.06,239.3438441]
[1738386559591,0.0001,232.07,232.06,273.56634638]
[1738386559893,0.0001,232.07,232.06,273.69183638]
[1738386560256,0.063,232.09,232.06,273.69183638]
[1738386560459,0.03,232.11,232.09,13.78831853]
[1738386560772,0.0001,232.1,232.09,25.78985212]
[1738386560979,0.033,232.15,232.14,13.41184853]
[1738386561195,0.0001,232.15,232.14,240.11512316]
[1738386561486,0.0001,232.15,232.14,239.4693341]
[1738386562062,1.5689,232.26,232.16,1.0]
[1738386562360,1.5689,232.26,232.21,8.55562557]
[1738386562562,1.5689,232.26,232.21,240.7673741]
[1738386563684,6.4986,232.29,232.21,241.1438441]
[1738386565180,6.4986,232.29,232.21,240.7673741]
[1738386565377,6.4986,232.29,232.21,81.2999]
[1738386567075,7.30599974,232.29,232.21,81.2999]
[1738386569219,6.4986,232.29,232.21,81.2999]
[1738386572881,7.30596682,232.29,232.21,81.2999]
[1738386573394,6.4986,232.29,232.21,81.2999]
[1738386583404,6.2286,232.29,232.21,81.2999]
[1738386588512,0.80734528,232.28,232.21,81.2999]
[1738386591808,13.41184853,232.27,232.19,0.03476616]
[1738386592014,1.80745578,232.26,232.19,0.03476616]
[1738386592399,13.41184853,232.25,232.19,0.03476616]
[1738386592600,1.5671,232.23,232.19,0.03476616]
[1738386592792,0.80765498,232.22,232.19,0.03476616]
[1738386593913,0.80765498,232.22,232.21,0.03]
[1738386594102,6.84935498,232.22,232.21,0.03]
[1738386594419,6.84935498,232.22,232.19,0.03476616]
[1738386594420,7.84925498,232.22,232.19,0.03476616]
[1738386595519,6.84935498,232.22,232.19,0.03476616]
[1738386595736,7.84925498,232.22,232.19,0.03476616]
[1738386597030,13.41184853,232.21,232.19,6.616e-05]
[1738386597241,13.41184853,232.19,232.07,81.2999]
[1738386597441,15.21949069,232.2,232.07,81.2999]
[1738386597442,0.80783224,232.18,232.07,81.2999]
[1738386598424,0.80780088,232.17,232.07,81.2999]
[1738386599232,14.21967861,232.19,232.07,81.2999]
[1738386600531,14.41174853,232.18,232.07,81.2999]
[1738386600855,0.80789324,232.17,232.07,81.2999]
[1738386601039,0.80789324,232.17,232.15,0.0001]
[1738386602214,0.8078893,232.18,232.15,0.0001]
[1738386603135,18.35181842,232.19,232.15,0.0001]
[1738386604008,13.41184853,232.18,232.15,0.0001]
[1738386604212,1.80775607,232.17,232.15,0.0001]
[1738386604739,13.41184853,232.16,232.15,0.0001]
[1738386606209,13.41184853,232.14,232.03,81.2999]
[1738386606411,13.41184853,232.12,232.03,81.2999]
[1738386606641,0.80805664,232.11,232.03,81.2999]
[1738386612045,0.80805664,232.11,232.0,81.5999]
[1738386613343,88.6417,232.14,232.04,8.55562557]
[1738386615237,82.6,232.14,232.04,8.55562557]
[1738386617025,82.6,232.14,232.03,8.55562557]
[1738386617639,82.6,232.14,232.04,0.03]
[1738386617942,0.80784818,232.16,232.04,89.88552557]
[1738386618317,82.663,232.18,232.05,8.55562557]
[1738386618521,83.47076986,232.18,232.06,1.6643]
[1738386619940,0.87076986,232.18,232.06,82.9642]
[1738386620454,14.28261839,232.18,232.06,82.9642]
[1738386622144,0.9999,232.15,232.06,82.9642]
[1738386622440,0.9999,232.15,232.04,0.03]
[1738386622441,14.21975355,232.14,232.04,0.03]
[1738386622618,0.9999,232.13,232.04,0.03]
[1738386622819,0.80801828,232.12,232.04,0.03]
[1738386623928,0.80797962,232.13,232.04,0.03]
[1738386624422,14.2198275,232.14,232.04,0.03]
[1738386625345,13.41184853,232.15,232.04,0.03]
[1738386625548,0.80791229,232.14,232.04,0.03]
[1738386626944,83.4079073,232.16,232.04,0.03]
[1738386627237,82.6,232.16,232.04,0.03]
[1738386627432,0.063,232.18,232.04,89.88552557]
[1738386627628,0.063,232.18,232.06,8.55562557]
[1738386631339,0.063,232.18,232.05,12.86492557]
[1738386631549,0.063,232.18,232.05,26.2767741]
[1738386632855,0.063,232.18,232.05,242.2766741]
[1738386633168,0.063,232.18,232.05,248.4731741]
[1738386634167,0.063,232.18,232.06,1.6529]
[1738386638776,0.063,232.18,232.06,217.6528]
[1738386639672,0.063,232.18,232.06,226.20842557]
[1738386639860,0.063,232.18,232.06,230.51752557]
[1738386641783,0.063,232.18,232.09,8.55562557]
[1738386641984,0.063,232.18,232.09,215.9999]
[1738386647681,0.063,232.18,232.1,1.6112]
[1738386653589,0.87058151,232.18,232.1,1.6112]
[1738386664480,0.063,232.18,232.1,1.6112]
[1738386665201,0.063,232.18,232.1,1.6412]
[1738386667787,0.063,232.18,232.11,28.2297741]
[1738386669005,0.063,232.18,232.11,32.5378741]
[1738386671402,0.063,232.18,232.11,248.5377741]
[1738386672408,0.063,232.18,232.14,21.9674741]
[1738386672598,0.063,232.18,232.15,8.55562557]
[1738386673900,0.063,232.18,232.14,224.55552557]
[1738386675813,0.063,232.18,232.14,215.9999]
[1738386675985,0.063,232.18,232.14,81.2999]
[1738386687412,0.063,232.18,232.14,94.16312557]
[1738386687714,0.063,232.18,232.14,100.27442557]
[1738386688015,0.063,232.18,232.15,13.41184853]
[1738386688192,0.063,232.18,232.16,8.55562557]
[1738386688815,0.063,232.18,232.16,12.86282557]
[1738386689012,0.063,232.18,232.16,94.16272557]
[1738386691600,0.063,232.18,232.17,8.55562557]
[1738386692224,0.063,232.18,232.17,89.85552557]
[1738386692907,0.063,232.18,232.17,237.9673741]
[1738386700230,0.063,232.18,232.17,238.0928641]
[1738386703832,0.063,232.18,232.17,238.3438441]
[1738386704433,0.063,232.18,232.17,238.0928641]
[1738386712716,0.063,232.18,232.17,239.0928641]
[1738386714910,17.20014363,232.31,232.21,20.12549]
[1738386715116,6.1849,232.32,232.26,8.55562557]
[1738386715333,6.1849,232.32,232.26,89.85552557]
[1738386716233,1.5879,232.36,232.26,89.85552557]
[1738386716531,1.5879,232.36,232.27,8.55562557]
[1738386719040,1.5879,232.36,232.27,89.85552557]
[1738386719743,1.5879,232.36,232.27,81.2999]
[1738386722247,1.5879,232.36,232.27,89.85552557]
[1738386724144,1.5879,232.36,232.27,81.2999]
[1738386726736,1.6509,232.36,232.27,81.2999]
[1738386727150,1.6509,232.36,232.27,89.85552557]
[1738386727954,0.063,232.36,232.27,89.85552557]
[1738386728354,0.063,232.36,232.28,8.55562557]
[1738386728659,0.063,232.36,232.27,89.85552557]
[1738386730851,0.063,232.36,232.28,8.55562557]
[1738386733052,0.063,232.36,232.29,8.55562557]
[1738386733362,0.063,232.36,232.32,8.55562557]
[1738386735668,0.063,232.36,232.33,8.55562557]
[1738386736033,0.063,232.36,232.34,8.55562557]
[1738386737348,0.063,232.36,232.35,8.55562557]
[1738386739054,0.063,232.36,232.35,23.5657741]
[1738386739357,0.9999,232.5,232.36,24.42562853]
[1738386739529,6.0997,232.54,232.44,8.55562557]
[1738386739731,7.3738045,232.57,232.47,8.55562557]
[1738386739949,7.3738045,232.57,232.52,8.55562557]
[1738386740657,7.3738045,232.57,232.54,8.55562557]
[1738386740963,7.3738045,232.57,232.53,8.55562557]
[1738386741163,0.063,232.6,232.53,8.55562557]
[1738386741460,0.063,232.6,232.52,8.55562557]
[1738386743659,0.063,232.6,232.52,13.41184853]
[1738386744059,0.063,232.6,232.51,1.6326]
[1738386744241,0.063,232.6,232.48,8.55562557]
[1738386744746,0.063,232.6,232.49,13.41184853]
[1738386745057,0.063,232.6,232.5,13.41184853]
[1738386748172,0.80627114,232.59,232.47,8.55562557]
[1738386748360,0.80627114,232.59,232.46,12.96822557]
[1738386748675,1.86924612,232.6,232.48,8.55562557]
[1738386749138,1.86924612,232.6,232.47,21.9674741]
[1738386751068,1.86924612,232.6,232.48,8.55562557]
[1738386752566,1.86924612,232.6,232.47,21.9674741]
[1738386754469,0.9999,232.58,232.45,81.2999]
[1738386754663,0.80643321,232.57,232.45,81.2999]
[1738386754967,2.5679,232.55,232.41,1.5198]
[1738386755174,0.80657039,232.54,232.41,1.5198]
[1738386755770,0.9999,232.53,232.42,13.41184853]
[1738386757866,1.568,232.55,232.43,8.55562557]
[1738386758072,83.40656751,232.58,232.47,13.41184853]
[1738386758278,82.6,232.58,232.47,8.55562557]
[1738386759665,82.6,232.58,232.47,13.41184853]
[1738386760174,0.80636475,232.57,232.43,8.55562557]
[1738386760685,1.80626475,232.57,232.41,1.5198]
[1738386761061,0.9999,232.55,232.41,4.2998]
[1738386761325,1.80657541,232.54,232.4,81.2999]
[1738386761398,8.6688,232.53,232.4,81.2999]
[1738386761675,8.6688,232.53,232.35,144.90792557]
[1738386761676,1.80671122,232.52,232.36,2.8]
[1738386761850,0.9999,232.51,232.36,2.8]
[1738386762053,0.8067536,232.5,232.37,13.41184853]
[1738386762678,0.8067536,232.5,232.36,13.41184853]
[1738386763154,0.8067536,232.5,232.36,13.44184853]
[1738386763963,0.8067536,232.5,232.36,21.9974741]
[1738386764265,82.6,232.52,232.42,13.41184853]
[1738386764461,7.6689,232.53,232.42,13.41184853]
[1738386768392,7.6689,232.53,232.44,13.41184853]
[1738386768560,7.6689,232.53,232.45,8.55562557]
[1738386769276,7.6689,232.53,232.46,13.41184853]
[1738386769663,6.1024,232.53,232.46,13.41184853]
[1738386770984,6.1024,232.53,232.44,13.41184853]
[1738386772984,6.1024,232.53,232.43,13.41184853]
[1738386775584,6.1654,232.53,232.43,13.41184853]
[1738386778774,6.1654,232.53,232.41,81.2999]
[1738386778972,0.80656269,232.52,232.39,2.78]
[1738386779279,1.5059,232.51,232.39,2.78]
[1738386779479,1.5059,232.51,232.4,13.41184853]
[1738386780195,1.5059,232.51,232.39,13.41184853]
[1738386780912,0.80662653,232.5,232.39,13.41184853]
[1738386781224,0.80662653,232.5,232.36,2.83]
[1738386781772,1.80662653,232.5,232.36,0.03]
[1738386781995,0.9999,232.49,232.36,0.03]
[1738386782202,0.8068091,232.48,232.36,0.03]
[1738386783394,0.80676064,232.47,232.36,13.44184853]
[1738386783564,0.80676064,232.47,232.36,0.03]
[1738386784185,0.80679309,232.46,232.36,0.03]
[1738386784381,0.8067967,232.49,232.36,0.03]
[1738386785097,7.3186,232.48,232.36,0.03]
[1738386785276,0.80685323,232.47,232.36,0.03]
[1738386788898,0.80685323,232.47,232.38,13.41184853]
[1738386789989,6.3186,232.48,232.36,0.03]
[1738386789990,6.3186,232.48,232.4,13.41184853]
[1738386793509,6.3186,232.48,232.38,13.41184853]
[1738386797818,6.3186,232.48,232.4,13.41184853]
[1738386802617,6.3816,232.48,232.4,13.41184853]
[1738386803602,6.3816,232.48,232.38,13.41184853]
[1738386804903,6.2516,232.48,232.38,13.41184853]
[1738386811333,0.80669517,232.47,232.36,0.03]
[1738386814026,83.40669517,232.47,232.36,0.03]
[1738386822100,82.6,232.47,232.39,13.41184853]
[1738386825943,6.2516,232.48,232.39,13.41184853]
[1738386832633,6.2516,232.48,232.38,13.41184853]
[1738386832940,0.80675686,232.47,232.38,13.41184853]
[1738386833144,7.05835191,232.48,232.36,8.58562557]
[1738386833320,7.05835191,232.48,232.37,13.41184853]
[1738386834932,6.2516,232.48,232.39,13.41184853]
[1738386850155,6.2516,232.48,232.41,13.41184853]
[1738386852251,6.2516,232.48,232.41,8.55562557]
[1738386856958,6.2516,232.48,232.41,13.41184853]
[1738386862551,6.2516,232.48,232.41,13.44184853]
[1738386864964,6.2516,232.48,232.41,21.9974741]
[1738386868975,6.2516,232.48,232.41,13.44184853]
[1738386871177,6.2516,232.48,232.41,8.58562557]
[1738386875245,6.2516,232.48,232.41,0.03]
[1738386876786,11.2516,232.48,232.41,0.03]
[1738386879674,11.2516,232.48,232.42,13.41184853]
[1738386882860,16.2516,232.48,232.42,13.41184853]
[1738386885082,10.063,232.48,232.42,13.41184853]
[1738386885288,10.063,232.48,232.42,16.19184853]
[1738386887278,10.063,232.48,232.44,13.41184853]
[1738386889187,10.063,232.48,232.42,2.78]
[1738386889367,10.063,232.48,232.41,0.03]
[1738386889577,6.2499,232.47,232.41,0.03]
[1738386893492,7.31560855,232.47,232.41,0.03]
[1738386895573,1.5842,232.45,232.41,0.03]
[1738386896183,0.80685826,232.44,232.41,0.03]
[1738386897890,5.0,232.44,232.41,0.03]
[1738386901103,10.0,232.44,232.41,0.03]
[1738386901429,0.80682794,232.43,232.41,0.03]
[1738386901697,82.6,232.42,232.41,0.03]
[1738386909110,10.0,232.44,232.41,13.44184853]
[1738386910087,10.0,232.44,232.41,8.58562557]
[1738386910289,10.0,232.44,232.42,8.55562557]
[1738386911217,10.0,232.44,232.43,13.41184853]
[1738386911720,10.0,232.44,232.42,13.41184853]
[1738386912306,10.0,232.44,232.42,8.55562557]
[1738386912715,10.0,232.44,232.42,13.41184853]
[1738386913723,10.0,232.44,232.42,8.55562557]
[1738386914222,10.0,232.44,232.43,8.55562557]
[1738386914418,10.0,232.44,232.43,21.9674741]
[1738386915616,10.0,232.44,232.43,13.41184853]
[1738386935430,10.0,232.44,232.43,13.44184853]
[1738386937743,9.87,232.44,232.43,13.44184853]
[1738386959571,9.933,232.44,232.43,13.44184853]
[1738386960262,9.933,232.44,232.43,21.9974741]
[1738386963245,9.933,232.44,232.43,13.44184853]
[1738386965670,9.933,232.44,232.43,0.03]
[1738386980058,9.933,232.44,232.43,23.5326741]
[1738386980389,5.0,232.47,232.44,13.41184853]
[1738386980585,5.0,232.47,232.46,13.41184853]
[1738386981957,5.0,232.47,232.43,10.12082557]
[1738386982175,5.0,232.47,232.43,1.5652]
[1738386982581,5.0,232.47,232.44,13.41184853]
[1738386983883,5.063,232.47,232.44,13.41184853]
[1738386990574,5.063,232.47,232.43,0.03]
[1738386991595,94.74530925,232.47,232.43,0.03]
[1738386991800,93.9386,232.47,232.43,0.03]
[1738386992866,0.80679588,232.46,232.43,0.03]
[1738386995274,82.6,232.45,232.43,0.03]
[1738387001302,82.6,232.44,232.43,0.03]
[1738387013135,0.9045395,232.46,232.43,0.03]
[1738387015329,1.9044395,232.46,232.43,0.0001]
[1738387015538,0.9999,232.44,232.41,0.0001]
[1738387015735,0.80699854,232.43,232.41,0.0001]
[1738387017634,0.80693768,232.42,232.41,0.0001]
[1738387018626,1.525,232.45,232.41,0.0001]
[1738387018627,0.80695124,232.44,232.41,0.0001]
[1738387019432,82.6,232.43,232.41,0.0001]
[1738387019610,0.80694977,232.42,232.41,0.0001]
[1738387024021,1.09090018,232.42,232.41,0.0001]
[1738387024223,83.40703108,232.43,232.41,0.0001]
[1738387025142,82.6,232.42,232.41,0.0001]
[1738387025436,83.40693114,232.42,232.41,0.0001]
[1738387026336,82.6,232.42,232.41,0.0001]
[1738387026559,83.40693352,232.42,232.41,0.0001]
[1738387027338,82.6,232.42,232.41,0.0001]
[1738387037060,0.86982813,232.44,232.41,0.0001]
[1738387041625,0.86982813,232.44,232.38,0.0001]
[1738387041829,82.6,232.41,232.38,0.0001]
[1738387042036,0.80709113,232.4,232.38,0.0001]
[1738387043047,1.88576352,232.4,232.38,0.0001]
[1738387043344,0.80709113,232.4,232.38,0.0001]
[1738387044219,82.6,232.41,232.38,0.0001]
[1738387044832,83.40693769,232.41,232.38,0.0001]
[1738387045039,82.6,232.41,232.38,0.0001]
[1738387045968,82.6,232.4,232.38,0.0001]
[1738387051848,82.6,232.39,232.38,0.0001]
[1738387052047,0.8069267,232.42,232.38,0.0001]
[1738387056274,0.8699267,232.42,232.38,0.0001]
[1738387057574,0.8699267,232.42,232.36,0.0101]
[1738387057795,82.6,232.38,232.36,0.0101]
[1738387057954,0.80715855,232.37,232.36,0.0101]
[1738387062649,1.89272117,232.37,232.36,0.0101]
[1738387068170,82.6,232.36,232.27,1.5426]
[1738387068480,83.40723809,232.35,232.27,1.5426]
[1738387068775,82.6,232.34,232.27,1.5426]
[1738387068973,0.80737158,232.33,232.21,7.6233]
[1738387069168,82.6,232.33,232.23,21.9674741]
[1738387069365,82.6,232.33,232.25,13.41184853]
[1738387072588,82.6,232.32,232.25,13.41184853]
[1738387073791,82.6,232.32,232.21,16.17892557]
[1738387073978,0.80729607,232.31,232.21,16.17892557]
[1738387075887,82.6,232.32,232.22,13.41184853]
[1738387076188,82.6,232.32,232.22,21.9674741]
[1738387078485,82.6,232.31,232.22,21.9674741]
[1738387081092,82.6,232.31,232.22,26.2736741]
[1738387081293,82.6,232.31,232.25,13.41184853]
[1738387081694,82.6,232.31,232.27,13.41184853]
[1738387084467,0.03474362,232.3,232.27,13.41184853]
[1738387087394,0.03474362,232.3,232.29,13.41184853]
[1738387088976,0.03474362,232.3,232.24,2.78]
[1738387089495,0.03474362,232.3,232.25,13.41184853]
[1738387091798,0.03474362,232.3,232.25,13.44184853]
[1738387098912,0.03474362,232.3,232.25,0.03]
[1738387100404,82.6,232.29,232.25,0.03]
[1738387105304,82.6,232.28,232.25,0.03]
[1738387107119,0.84206626,232.3,232.25,0.03]
[1738387107120,82.6,232.27,232.25,0.03]
[1738387111215,82.6,232.26,232.25,0.03]
[1738387111427,6.1521,232.29,232.25,0.03]
[1738387111781,0.03474362,232.3,232.25,0.03]
[1738387117181,82.6,232.29,232.25,0.03]
[1738387120823,82.6,232.29,232.25,8.58562557]
[1738387121318,82.6,232.29,232.26,13.41184853]
[1738387122396,0.03474362,232.3,232.28,13.41184853]
[1738387123011,0.03474362,232.3,232.29,21.9674741]
[1738387125721,0.03474362,232.3,232.29,13.41184853]
[1738387132426,0.03474362,232.3,232.29,23.5335741]
[1738387132907,0.03474362,232.3,232.29,13.41184853]
[1738387138938,0.03474362,232.3,232.29,13.44184853]
[1738387139241,0.03474362,232.3,232.29,21.9974741]
[1738387143945,0.03474362,232.3,232.29,24.0378441]
[1738387145048,0.063,232.36,232.33,20.0]
[1738387145340,0.063,232.36,232.35,22.2184541]
[1738387145545,0.063,232.36,232.35,22.86379135]
[1738387146331,0.063,232.36,232.35,27.16759135]
[1738387150249,0.063,232.36,232.35,28.95208135]
[1738387153054,0.063,232.36,232.35,29.95208135]
[1738387154952,0.063,232.42,232.39,13.41184853]
[1738387155251,0.063,232.42,232.41,21.9674741]
[1738387156152,0.063,232.42,232.41,26.2701741]
[1738387159342,0.063,232.42,232.41,26.5211541]
[1738387164063,0.063,232.44,232.43,33.66282853]
[1738387164260,0.063,232.44,232.43,42.2184541]
[1738387166843,0.063,232.44,232.43,46.5207541]
[1738387175077,0.063,232.44,232.43,48.0510541]
[1738387175654,0.063,232.44,232.43,48.1765441]
[1738387182082,0.063,232.44,232.43,46.5207541]
[1738387185090,0.063,232.44,232.43,41.9674741]
[1738387185288,0.063,232.44,232.41,11.33562557]
[1738387185573,0.063,232.44,232.39,11.33562557]
[1738387185978,0.063,232.44,232.4,13.41184853]
[1738387190081,0.063,232.44,232.39,13.41184853]
[1738387190582,0.063,232.44,232.42,13.41184853]
[1738387190767,0.063,232.44,232.43,21.9674741]
[1738387192184,0.063,232.44,232.43,22.2184541]
[1738387193887,0.063,232.44,232.43,26.5207541]
[1738387196388,0.063,232.44,232.43,27.29137252]
[1738387199396,0.063,232.44,232.43,27.16588252]
[1738387199793,0.063,232.44,232.43,109.59137252]
[1738387200088,0.063,232.46,232.45,0.37647]
[1738387200278,0.063,232.46,232.45,28.29094487]
[1738387201105,0.0001,232.46,232.45,29.29094487]
[1738387201338,0.0001,232.46,232.45,29.41643487]
[1738387202484,0.063,232.53,232.47,2.37647]
[1738387202784,0.063,232.53,232.47,24.3439441]
[1738387203096,0.0001,232.48,232.47,24.4694341]
[1738387203302,0.0001,232.48,232.47,25.11429811]
[1738387204111,0.063,232.6,232.56,0.25098]
[1738387204289,0.063,232.6,232.59,42.2184541]
[1738387205379,0.063,232.6,232.59,46.5178541]
[1738387206096,0.063,232.6,232.59,46.6433441]
[1738387206295,0.063,232.6,232.59,46.5178541]
[1738387206605,0.063,232.6,232.59,41.9674741]
[1738387206811,0.063,232.6,232.59,13.41184853]
[1738387207802,0.063,232.6,232.59,21.9674741]
[1738387208196,0.063,232.6,232.59,13.41184853]
[1738387208500,0.063,232.6,232.59,21.9674741]
[1738387210199,0.063,232.6,232.59,13.41184853]
[1738387211016,0.063,232.6,232.59,21.9674741]
[1738387212413,0.063,232.6,232.59,13.41184853]
[1738387215305,0.063,232.6,232.59,21.9674741]
[1738387215809,0.063,232.6,232.59,22.2184541]
[1738387216913,0.063,232.6,232.59,13.41184853]
[1738387223203,6.226,232.6,232.53,8.58562557]
[1738387223617,6.226,232.6,232.55,8.55562557]
[1738387223908,6.226,232.6,232.53,8.58562557]
[1738387224289,6.226,232.6,232.53,21.9974741]
[1738387224887,6.226,232.6,232.53,8.58562557]
[1738387225117,6.226,232.6,232.53,0.03]
[1738387225412,82.6,232.59,232.53,0.03]
[1738387225815,82.6,232.58,232.53,0.03]
[1738387227014,83.40639675,232.58,232.53,0.03]
[1738387228132,82.6,232.58,232.53,0.03]
[1738387229802,6.226,232.6,232.56,8.55562557]
[1738387231023,6.226,232.6,232.56,13.41184853]
[1738387231910,0.063,232.6,232.57,8.55562557]
[1738387233253,0.063,232.6,232.55,8.55562557]
[1738387233427,0.063,232.6,232.53,8.58562557]
[1738387233624,0.063,232.6,232.54,8.55562557]
[1738387233830,0.063,232.6,232.56,21.9674741]
[1738387234431,0.063,232.6,232.55,13.41184853]
[1738387234951,0.063,232.6,232.54,13.41184853]
[1738387235956,82.6,232.59,232.53,0.03]
[1738387236458,82.6,232.58,232.53,0.03]
[1738387236783,0.8064119,232.57,232.53,0.03]
[1738387237927,83.40640201,232.58,232.53,0.03]
[1738387241971,82.6,232.57,232.53,0.03]
[1738387247876,82.6,232.56,232.53,0.03]
[1738387251947,83.40641339,232.56,232.53,0.03]
[1738387252154,82.6,232.55,232.53,0.03]
[1738387252352,83.40650229,232.54,232.53,0.03]
[1738387254572,0.80650229,232.54,232.47,0.03]
[1738387254876,83.40667558,232.53,232.47,0.03]
[1738387256173,6.3625,232.52,232.47,0.03]
[1738387256478,0.80676566,232.51,232.47,0.03]
[1738387259981,82.6,232.5,232.47,0.03]
[1738387264878,82.6,232.5,232.48,21.94559771]
[1738387266688,82.6,232.5,232.47,8.56374918]
[1738387266868,82.6,232.5,232.48,13.41184853]
[1738387268683,0.063,232.56,232.48,13.41184853]
[1738387268684,82.6,232.55,232.48,13.41184853]
[1738387269458,82.6,232.55,232.47,13.44184853]
[1738387271988,82.6,232.55,232.5,13.41184853]
[1738387272196,82.6,232.55,232.52,13.41184853]
[1738387272494,0.063,232.56,232.52,13.41184853]
[1738387272700,0.063,232.56,232.52,8.53374918]
[1738387273896,0.063,232.56,232.53,13.41184853]
[1738387274964,0.063,232.56,232.5,21.94559771]
[1738387278061,0.063,232.56,232.51,2.8]
[1738387284497,0.063,232.56,232.48,13.41184853]
[1738387287008,0.063,232.56,232.48,21.94559771]
[1738387287304,0.063,232.56,232.51,13.41184853]
[1738387289202,0.063,232.56,232.51,8.53374918]
[1738387290611,81.663,232.58,232.51,8.53374918]
[1738387292590,81.663,232.58,232.51,13.41184853]
[1738387299087,81.663,232.58,232.53,13.41184853]
[1738387301505,81.726,232.58,232.53,13.41184853]
[1738387304212,81.726,232.58,232.53,21.94559771]
[1738387309619,81.726,232.58,232.53,13.41184853]
[1738387319506,81.726,232.58,232.53,21.94559771]
[1738387319701,81.726,232.58,232.55,13.41184853]
[1738387326124,81.726,232.58,232.53,21.97559771]
[1738387331120,0.063,232.58,232.57,8.53374918]
[1738387331428,0.063,232.58,232.57,23.80817771]
[1738387332431,0.063,232.58,232.57,28.10787771]
[1738387334548,0.063,232.58,232.57,23.55719771]
[1738387335236,0.063,232.58,232.57,26.33719771]
[1738387335536,0.063,232.58,232.57,23.55719771]
[1738387335727,0.063,232.58,232.57,17.82344853]
[1738387337151,0.063,232.58,232.57,26.35719771]
[1738387340747,0.063,232.58,232.57,23.55719771]
[1738387350662,0.063,232.58,232.57,23.58719771]
[1738387352965,0.063,232.58,232.57,21.97559771]